[Event "Israel Team Ch Under 18"]
[Site "Jerusalem"]
[Date "2017.08.14"]
[Round "5"]
[White "Gitzman, Michael"]
[Black "Tzidkiya, Yeshaayahu"]
[Result "0-1"]
[ECO "A45"]
[WhiteElo "1912"]
[BlackElo "2156"]
[Annotator "NA"]
[PlyCount "47"]
[EventDate "2017.??.??"]
[EventType "swiss"]
[EventCountry "ISR"]
[SourceTitle "playchess.com"]
[Source "ChessBase"]
[SourceQuality "1"]
[TimeControl "40/5400+30:1800+30"]

1. d4 {[%emt 0:40:15]} Nf6 {[%emt 0:40:43]} 2. Nc3 {[%emt 0:00:31]} g6 {[%emt 0:00:24]} 3. Bf4 {[%emt 0:00:28]} c5 {[%emt 0:01:25]} 4. dxc5 {[%emt 0:01:01]} Qa5 {[%emt 0:00:57]} 5. f3 {[%emt 0:07:15]} Qxc5 {[%emt 0:01:12]} 6. e4 {[%emt 0:02:06]} Bg7 {[%emt 0:03:56]} 7. Qd2 {[%emt 0:04:36]} O-O {[%emt 0:03:11]} 8. Be3 {[%emt 0:10:31]} Qa5 {[%emt 0:00:51]} 9. Bc4 {[%emt 0:03:32]} Nc6 {[%emt 0:02:35]} 10. Nge2 {[%emt 0:01:54]} d6 {[%emt 0:02:51]} 11. O-O {[%emt 0:01:33]} Bd7 {[%emt 0:02:27]} 12. Rab1 {[%emt 0:04:00]} Rfc8 {[%emt 0:03:20]} 13. Bb3 {[%emt 0:06:10]} b5 {[%emt 0:01:50]} 14. Nd4 {[%emt 0:03:00]} Ne5 {[%emt 0:13:35]} 15. Nd5 $2 {[%emt 0:03:45]} (15. Ncxb5 $1 $11 {and White has nothing to worry.} Qxd2 16. Bxd2) 15... Qxd2 {[%emt 0:02:35]} 16. Bxd2 {[%emt 0:01:21]} Nxd5 {[%emt 0:01:49]} 17. Bxd5 $17 {[%emt 0:01:18]} Nc4 {[%emt 0:01:26]} 18. Bc3 {[%emt 0:02:14]} b4 {[%emt 0:01:22]} 19. Bxa8 {[%emt 0:00:54]} Rxa8 {[%emt 0:00:31]} 20. Bxb4 {[%emt 0:01:18]} Bxd4+ {[%emt 0:00:25]} 21. Kh1 {[%emt 0:00:21]} a5 {[%emt 0:00:48]} 22. Rfd1 {[%emt 0:01:30]} Bxb2 {[%emt 0:01:06]} 23. Bd2 {[%emt 0:00:30]} Ba4 {[%emt 0:00:52]} 24. Bc1 0-1

[Event "Israel Team Ch Under 18"]
[Site "Jerusalem"]
[Date "2017.08.14"]
[Round "5"]
[White "Chachashvili, Zuri"]
[Black "Globus, Or"]
[Result "1/2-1/2"]
[ECO "B42"]
[WhiteElo "1911"]
[BlackElo "2259"]
[Annotator "NA"]
[PlyCount "55"]
[EventDate "2017.??.??"]
[EventType "swiss"]
[EventCountry "ISR"]
[SourceTitle "playchess.com"]
[Source "ChessBase"]
[SourceQuality "1"]
[TimeControl "40/5400+30:1800+30"]

1. e4 {[%emt 0:40:22]} c5 {[%emt 0:40:49]} 2. Nf3 {[%emt 0:00:52]} e6 {[%emt 0:00:24]} 3. d4 cxd4 {[%emt 0:00:24]} 4. Nxd4 {[%emt 0:01:56]} a6 {[%emt 0:00:28]} 5. Bd3 {[%emt 0:00:51]} Bc5 {[%emt 0:00:43]} 6. Nb3 {[%emt 0:01:03]} Be7 {[%emt 0:00:26] LiveBook: 2177 Games} 7. Nc3 {[%emt 0:01:57]} d6 {[%emt 0:03:12]} 8. Be3 {[%emt 0:01:59] B42: Sicilian: Kan Variation: 5 Bd3} (8. Qg4 g6 9. Qe2 Nd7 10. O-O Qc7 11. f4 b5 12. Be3 Bb7 13. f5 gxf5 14. exf5 e5 15. Be4 Ngf6 16. Bxb7 Qxb7 {1-0 (60) Vachier Lagrave,M (2788)-Caruana,F (2795) chess.com INT 2016}) 8... Nd7 {[%emt 0:00:59]} 9. a4 {[%emt 0:01:46]} b6 {[%emt 0:01:15]} 10. O-O {[%emt 0:01:14]} Ngf6 {[%emt 0:00:46]} 11. f4 {[%emt 0:01:33]} Bb7 {[%emt 0:02:19]} 12. Qf3 {[%emt 0:01:31]} g6 {[%emt 0:01:22]} 13. Rae1 {[%emt 0:01:59]} Qc7 {[%emt 0:01:45]} 14. Bd2 $146 {[%emt 0:03:17]} ({Find the theoretical novelty and annotate with similar games:} 14. Qe2 h5 15. Bd2 {0-1 (51) Kazakos,E (2105)-Krzyzanowski,M (2356) Batumi 2010}) 14... Nc5 {[%emt 0:09:53]} 15. Qe2 {[%emt 0:05:20]} Nxd3 {[%emt 0:07:00]} 16. cxd3 {[%emt 0:00:44]} O-O {[%emt 0:00:57]} 17. Rc1 {[%emt 0:04:05]} Qd7 {[%emt 0:03:30]} 18. Nd4 {[%emt 0:02:22]} Rfe8 {[%emt 0:01:55]} 19. Be3 {[%emt 0:00:57]} Rab8 {[%emt 0:03:04]} 20. b4 {[%emt 0:06:44]} Bf8 {[%emt 0:04:28]} 21. b5 {[%emt 0:02:51]} Bg7 {[%emt 0:01:37]} 22. bxa6 {[%emt 0:03:35]} Bxa6 {[%emt 0:00:39]} 23. Ndb5 {[%emt 0:00:40]} h5 {[%emt 0:02:29]} 24. h3 {[%emt 0:00:39]} Rec8 $14 {[%emt 0:01:14]} 25. Qf2 {[%emt 0:03:44]} Rc6 {[%emt 0:02:02]} 26. Nd4 {[%emt 0:00:42]} Rcc8 {[%emt 0:01:20]} 27. Ndb5 {[%emt 0:00:30]} Rc6 {[%emt 0:02:49]} 28. Nd4 {[%emt 0:00:33]} 1/2-1/2

[Event "Israel Team Ch Under 18"]
[Site "Jerusalem"]
[Date "2017.08.14"]
[Round "5"]
[White "Kochavi, Ori"]
[Black "Zhimalov, Adam"]
[Result "*"]
[ECO "B40"]
[WhiteElo "1901"]
[BlackElo "2036"]
[Annotator "NA"]
[PlyCount "61"]
[EventDate "2017.??.??"]
[EventType "swiss"]
[EventCountry "ISR"]
[SourceTitle "playchess.com"]
[Source "ChessBase"]
[SourceQuality "1"]
[TimeControl "40/5400+30:1800+30"]

1. e4 {[%emt 0:40:15]} c5 {[%emt 0:40:49]} 2. Nf3 {[%emt 0:00:25]} e6 {[%emt 0:00:25]} 3. d4 {[%emt 0:00:37]} cxd4 {[%emt 0:00:26]} 4. Nxd4 {[%emt 0:00:33]} Nf6 {[%emt 0:00:28]} 5. Nc3 {[%emt 0:00:26]} Nc6 {[%emt 0:00:23]} 6. Ndb5 {[%emt 0:01:04]} Bb4 {[%emt 0:00:41]} 7. Bd3 {[%emt 0:02:10] B45: Sicilian Four Knights} (7. a3) 7... a6 {[%emt 0:00:37]} 8. Na3 {[%emt 0:01:30]} d5 $146 {[%emt 0:03:58]} ({Predecessor:} 8... Qa5 9. Qd2 b5 10. O-O Bb7 11. Re1 O-O 12. Nab1 d5 13. a3 d4 14. axb4 Qxa1 {0-1 (26) Sengupta,O (2145)-Vincic,V London,Canada 1995}) 9. exd5 {[%emt 0:03:41]} Nxd5 {[%emt 0:00:33]} 10. Bd2 {[%emt 0:01:05]} Nxc3 {[%emt 0:00:48]} 11. Bxc3 {[%emt 0:00:36]} Bxc3+ {[%emt 0:00:29]} 12. bxc3 {[%emt 0:00:27]} Qa5 {[%emt 0:00:48]} 13. Nb1 {[%emt 0:01:01]} O-O {[%emt 0:01:30]} 14. O-O {[%emt 0:00:59]} Rd8 {[%emt 0:03:34]} 15. Re1 {[%emt 0:01:33]} Ne7 {[%emt 0:08:04]} 16. Qf3 {[%emt 0:06:34]} Ng6 {[%emt 0:01:12]} 17. Nd2 {[%emt 0:02:35]} Qxc3 {[%emt 0:04:14]} 18. Bxg6 {[%emt 0:01:09]} Qxf3 {[%emt 0:00:31]} 19. Bxh7+ {[%emt 0:00:44]} Kxh7 {[%emt 0:00:22]} 20. Nxf3 {[%emt 0:00:30]} b5 {[%emt 0:01:11]} 21. Rad1 {[%emt 0:01:39]} Bb7 {[%emt 0:00:45]} 22. Ne5 {[%emt 0:01:39]} Kg8 {[%emt 0:01:17]} 23. f3 {[%emt 0:04:06]} Rac8 {[%emt 0:09:42]} 24. Rxd8+ {[%emt 0:01:30]} Rxd8 {[%emt 0:00:22]} 25. Kf2 {[%emt 0:01:58]} Bd5 {[%emt 0:02:12]} 26. Nd3 {[%emt 0:03:23]} (26. Ke3 $15) 26... Bxa2 {[%emt 0:02:35]} 27. Nb4 {[%emt 0:00:56]} Bc4 {[%emt 0:00:31]} 28. Ra1 {[%emt 0:01:47]} Rd2+ $17 {[%emt 0:00:37]} 29. Kg1 {[%emt 0:00:56]} a5 {[%emt 0:01:33]} 30. Rxa5 {[%emt 0:00:42]} Rd1+ {[%emt 0:01:08]} 31. Kf2 {[%emt 0:00:36]} *

[Event "Israel Team Ch Under 18"]
[Site "Jerusalem"]
[Date "2017.08.14"]
[Round "5"]
[White "Ehrlich, Roy"]
[Black "Hochman, Elnatan"]
[Result "0-1"]
[ECO "B06"]
[WhiteElo "1884"]
[BlackElo "2097"]
[Annotator "NA RC"]
[PlyCount "95"]
[EventDate "2017.??.??"]
[EventType "swiss"]
[EventCountry "ISR"]
[SourceTitle "playchess.com"]
[Source "ChessBase"]
[SourceQuality "1"]
[TimeControl "40/5400+30:1800+30"]

1. e4 {[%emt 0:40:11]} g6 {[%emt 0:41:00]} 2. d4 {[%emt 0:00:28]} Bg7 {[%emt 0:00:34]} 3. Nf3 {[%emt 0:00:41]} d6 {[%emt 0:00:26]} 4. Nc3 {[%emt 0:00:57]} Nd7 {[%emt 0:01:00]} 5. Bc4 {[%emt 0:00:46]} h6 {[%emt 0:01:47] B06: Modern Defence} (5... e6 6. O-O a6 7. a4 b6 8. Re1 Bb7 9. e5 dxe5 10. d5 exd5 11. Nxd5 Ne7 12. Bg5 Bxd5 13. Bxd5 Rb8 {½-½ (55) Bruzon Batista,L (2607)-Flores,D (2558) Morelia 2008}) 6. O-O {[%emt 0:00:41]} e5 {[%emt 0:01:24]} 7. Be3 {[%emt 0:02:45]} Ngf6 {[%emt 0:01:18]} 8. h3 {[%emt 0:01:47]} O-O {[%emt 0:01:23]} 9. Qd2 {[%emt 0:01:14]} Kh7 {[%emt 0:03:05]} 10. Rad1 {[%emt 0:01:16]} a6 $146 {[%emt 0:02:29]} ({Find the theoretical novelty and annotate with similar games:} 10... exd4 11. Bxd4 Qe7 12. Rfe1 Ne5 13. Be2 Nfd7 {1-0 (41) Fuskova,M (1739)-Zuziak,P (1577) Czechia 2011}) 11. dxe5 {[%emt 0:01:23]} dxe5 {[%emt 0:01:06]} 12. Nxe5 {[%emt 0:00:58]} Nxe5 {[%emt 0:00:23]} 13. Qxd8 {[%emt 0:00:29]} Rxd8 {[%emt 0:00:31]} 14. Rxd8 {[%emt 0:00:32]} Nxc4 {[%emt 0:00:23]} 15. b3 {[%emt 0:01:08]} Ne5 {[%emt 0:02:45]} 16. Nd5 {[%emt 0:00:59]} Nxd5 {[%emt 0:01:09]} 17. exd5 {[%emt 0:00:27]} b5 {[%emt 0:04:43]} 18. f4 {[%emt 0:07:30]} Nd7 {[%emt 0:01:38]} 19. d6 {[%emt 0:01:24]} cxd6 {[%emt 0:05:13]} 20. Rd1 {[%emt 0:00:41]} Nc5 {[%emt 0:14:12]} 21. R8xd6 {[%emt 0:02:58]} Ne6 {[%emt 0:02:51]} 22. Rb6 {[%emt 0:01:51]} Bf6 {[%emt 0:03:07]} 23. g3 {[%emt 0:05:05]} Be7 {[%emt 0:01:29]} 24. Kh2 {[%emt 0:01:19]} h5 {[%emt 0:01:17]} 25. h4 {[%emt 0:01:19]} (25. g4 $15) 25... Kg7 {[%emt 0:01:08]} 26. c3 {[%emt 0:02:02]} f6 {[%emt 0:03:16]} ({Black should play} 26... Kf8 27. c4 Bd8) 27. a4 {[%emt 0:03:40]} bxa4 {[%emt 0:00:45]} 28. bxa4 $17 {[%emt 0:00:26]} Kf7 {[%emt 0:00:39]} 29. Rdb1 {[%emt 0:00:58]} Bd7 {[%emt 0:01:13]} 30. a5 {[%emt 0:01:15]} Bd8 {[%emt 0:02:50]} 31. Rb7 {[%emt 0:00:40]} Ke7 {[%emt 0:00:31]} 32. Rd1 {[%emt 0:00:38]} Nc7 {[%emt 0:00:33]} 33. Bc5+ {[%emt 0:06:12]} Ke8 {[%emt 0:00:26]} 34. Re1+ {[%emt 0:00:35]} Ne6 {[%emt 0:00:35]} 35. Bb6 {[%emt 0:03:43]} Be7 {[%emt 0:00:37]} 36. Re3 {[%emt 0:03:07]} Bc8 {[%emt 0:00:24]} 37. Ra7 {[%emt 0:00:52]} Rxa7 {[%emt 0:00:25]} 38. Bxa7 {[%emt 0:00:21]} Kd7 {[%emt 0:00:32]} 39. Re1 {[%emt 0:01:32]} Kc6 {[%emt 0:00:34]} 40. Rb1 {[%emt 0:00:30]} Bd8 {[%emt 0:30:33]} 41. Bb6 {[%emt 0:30:42]} Nc7 {[%emt 0:00:29]} 42. c4 {[%emt 0:00:51]} Be6 {[%emt 0:00:28]} 43. Bd4 {[%emt 0:00:45]} Ne8 {[%emt 0:00:37]} 44. Rb8 {[%emt 0:00:36]} Kd7 {[%emt 0:00:25]} 45. Bb6 {[%emt 0:00:41]} Bxb6 {[%emt 0:00:22]} 46. axb6 {[%emt 0:00:24]} Bxc4 {[%emt 0:00:40]} 47. Rxe8 {[%emt 0:00:25]} Kc6 {[%emt 0:00:30]} 48. Rc8+ {[%emt 0:00:27]} 0-1

[Event "Israel Team Ch Under 18"]
[Site "Jerusalem"]
[Date "2017.08.14"]
[Round "5"]
[White "Barak, Gil"]
[Black "Tillinger, Aviv"]
[Result "1-0"]
[ECO "B56"]
[WhiteElo "1809"]
[BlackElo "1815"]
[Annotator "NA"]
[PlyCount "69"]
[EventDate "2017.??.??"]
[EventType "swiss"]
[EventCountry "ISR"]
[SourceTitle "playchess.com"]
[Source "ChessBase"]
[SourceQuality "1"]
[TimeControl "40/5400+30:1800+30"]

1. e4 {[%emt 0:40:13]} c5 {[%emt 0:40:44]} 2. Nf3 {[%emt 0:00:24]} d6 {[%emt 0:00:23]} 3. d4 {[%emt 0:00:24]} cxd4 {[%emt 0:00:23]} 4. Nxd4 {[%emt 0:00:25]} Nf6 {[%emt 0:00:24]} 5. Nc3 {[%emt 0:00:24]} Nc6 {[%emt 0:00:24]} 6. f3 {[%emt 0:00:29]} e5 {[%emt 0:01:22]} 7. Nb3 {[%emt 0:00:27]} Be6 {[%emt 0:01:12]} 8. Be3 {[%emt 0:00:28]} Be7 {[%emt 0:00:44]} 9. Qd2 {[%emt 0:00:30]} O-O {[%emt 0:06:06]} 10. O-O-O {[%emt 0:00:54]} a6 {[%emt 0:04:52]} 11. g4 {[%emt 0:04:28]} b5 {[%emt 0:02:59]} 12. Nd5 {[%emt 0:01:32] B90: Sicilian Najdorf: Unusual White 6th moves, 6 Be3 Ng4 and 6 Be3 e5} Bxd5 {[%emt 0:03:11]} 13. exd5 {[%emt 0:00:55]} Nb8 {[%emt 0:02:40]} (13... Na7 14. h4 Nd7 15. Kb1 Qc7 16. Bd3 Nb6 17. Qe1 Nxd5 18. Bxa7 Rxa7 19. Bxh7+ Kxh7 20. Rxd5 {1-0 (50) Djukic,N (2531)-Nikac,P (2358) Cetinje 2007}) 14. Kb1 {[%emt 0:02:29]} Nfd7 {[%emt 0:05:14]} 15. Bd3 $146 {[%emt 0:00:47]} ({Predecessor:} 15. g5 Nb6 16. Na5 Qc7 17. h4 Nc4 18. Nxc4 bxc4 19. c3 Nd7 {1-0 (32) Kowalski,I (1824)-Ochowicz,J (1597) Walbrzych 2013}) 15... Nc5 {[%emt 0:04:32]} 16. Nxc5 {[%emt 0:05:33]} dxc5 {[%emt 0:00:21]} 17. d6 {[%emt 0:01:13]} Bxd6 {[%emt 0:05:20]} 18. Be4 {[%emt 0:01:16]} Ra7 {[%emt 0:02:14]} 19. Bxc5 {[%emt 0:02:08]} Rd7 {[%emt 0:01:31]} 20. Bf5 {[%emt 0:06:29]} Bxc5 {[%emt 0:01:19]} 21. Bxd7 {[%emt 0:00:25]} Qb6 {[%emt 0:03:05]} 22. Bf5 {[%emt 0:00:52]} Nc6 {[%emt 0:00:58]} 23. Be4 {[%emt 0:02:24]} Nd4 {[%emt 0:03:35]} 24. Qd3 {[%emt 0:03:01]} g6 {[%emt 0:01:53]} 25. h4 {[%emt 0:01:08]} Ne6 {[%emt 0:02:10]} 26. h5 {[%emt 0:02:13]} Rd8 {[%emt 0:01:30]} 27. Qe2 {[%emt 0:00:52]} Nf4 $18 {[%emt 0:01:01]} 28. Rxd8+ {[%emt 0:03:43]} Qxd8 {[%emt 0:00:21]} 29. Rd1 {[%emt 0:01:19]} Qg5 {[%emt 0:01:45]} 30. Qd2 {[%emt 0:00:39]} Kg7 {[%emt 0:01:06]} 31. hxg6 {[%emt 0:00:43]} hxg6 {[%emt 0:00:24]} 32. Rh1 {[%emt 0:02:26]} f5 {[%emt 0:01:52]} 33. Qd7+ {[%emt 0:03:13]} Be7 {[%emt 0:00:21]} 34. gxf5 {[%emt 0:00:35]} gxf5 {[%emt 0:00:24]} 35. Qxf5 {[%emt 0:01:14]} 1-0

[Event "Israel Team Ch Under 18"]
[Site "Jerusalem"]
[Date "2017.08.14"]
[Round "5"]
[White "Avineri, Paz"]
[Black "Gorshtein, Ido"]
[Result "1/2-1/2"]
[ECO "D35"]
[WhiteElo "1807"]
[BlackElo "2148"]
[Annotator "ChessBase"]
[PlyCount "52"]
[EventDate "2017.??.??"]
[EventType "swiss"]
[EventCountry "ISR"]
[SourceTitle "playchess.com"]
[Source "ChessBase"]
[SourceQuality "1"]
[TimeControl "40/5400+30:1800+30"]

1. c4 {[%emt 0:40:11]} e6 {[%emt 0:40:51]} 2. Nc3 {[%emt 0:01:02]} d5 {[%emt 0:00:29]} 3. cxd5 {[%emt 0:00:25]} exd5 {[%emt 0:00:20]} 4. d4 {[%emt 0:00:31]} Nf6 {[%emt 0:00:32]} 5. Bg5 {[%emt 0:01:59]} Nbd7 {[%emt 0:00:30]} 6. Nf3 {[%emt 0:02:06]} Be7 {[%emt 0:00:45]} 7. e3 {[%emt 0:00:58]} c6 {[%emt 0:00:26]} 8. Bd3 {[%emt 0:01:08]} O-O {[%emt 0:00:58]} 9. Qc2 {[%emt 0:00:55]} Re8 {[%emt 0:00:46]} 10. O-O {[%emt 0:01:04]} h6 {[%emt 0:01:03]} 11. Bh4 {[%emt 0:00:29]} Ne4 {[%emt 0:02:11]} 12. Bxe7 {[%emt 0:02:30]} Qxe7 {[%emt 0:00:22]} 13. Nd2 {[%emt 0:01:01]} Ndf6 {[%emt 0:01:40]} 14. Ndxe4 {[%emt 0:00:33]} Nxe4 {[%emt 0:00:36]} 15. Nxe4 {[%emt 0:00:56]} dxe4 {[%emt 0:00:23]} 16. Bc4 {[%emt 0:00:32]} Qg5 {[%emt 0:02:05]} 17. Rae1 {[%emt 0:06:03]} Be6 {[%emt 0:07:34]} 18. Bxe6 {[%emt 0:05:51]} Rxe6 {[%emt 0:00:23]} 19. Rc1 {[%emt 0:01:18]} Qa5 {[%emt 0:01:37]} 20. Qb3 {[%emt 0:01:14]} Qb6 {[%emt 0:00:47]} 21. Rc3 {[%emt 0:01:27]} Rd8 {[%emt 0:03:41]} 22. Rfc1 {[%emt 0:03:21]} Rd5 {[%emt 0:01:04]} 23. Qxb6 {[%emt 0:00:38]} axb6 {[%emt 0:00:22]} 24. Rb3 {[%emt 0:01:12]} b5 {[%emt 0:01:31]} 25. Ra3 {[%emt 0:05:05]} Red6 {[%emt 0:02:05]} 26. b4 {[%emt 0:02:47]} f5 {[%emt 0:00:54]} 1/2-1/2

[Event "Israel Team Ch Under 18"]
[Site "Jerusalem"]
[Date "2017.08.14"]
[Round "5"]
[White "Kadria, Shay"]
[Black "Vazana, Yochay"]
[Result "*"]
[ECO "A00"]
[WhiteElo "1784"]
[BlackElo "1909"]
[Annotator "NA"]
[PlyCount "32"]
[EventDate "2017.??.??"]
[EventType "swiss"]
[EventCountry "ISR"]
[SourceTitle "playchess.com"]
[Source "ChessBase"]
[SourceQuality "1"]
[TimeControl "40/5400+30:1800+30"]

1. h3 {[%emt 0:40:13]} b6 {[%emt 0:41:51]} 2. Nf3 {[%emt 0:01:12]} Bb7 {[%emt 0:00:26]} 3. d3 {[%emt 0:00:40]} f5 {[%emt 0:01:57]} 4. Nc3 {[%emt 0:00:57]} Nf6 {[%emt 0:00:41]} 5. g3 {[%emt 0:01:25]} e6 {[%emt 0:01:30]} 6. Bg2 {[%emt 0:00:30]} Be7 {[%emt 0:00:28]} 7. O-O {[%emt 0:00:37]} O-O {[%emt 0:00:28]} 8. Ne1 {[%emt 0:01:58]} Bxg2 {[%emt 0:00:36]} 9. Nxg2 {[%emt 0:01:04]} d5 {[%emt 0:05:24]} 10. d4 {[%emt 0:02:27]} c5 {[%emt 0:02:11]} 11. e3 {[%emt 0:00:22]} Nc6 {[%emt 0:01:23]} 12. f4 {[%emt 0:02:55]} cxd4 {[%emt 0:02:21]} 13. exd4 {[%emt 0:01:00]} Nxd4 {[%emt 0:00:30]} 14. Kh2 {[%emt 0:03:39]} Nc6 {[%emt 0:01:13]} 15. g4 {[%emt 0:05:15]} Qd7 {[%emt 0:04:33]} 16. g5 {[%emt 0:08:38]} Ne8 {[%emt 0:06:08]} *

[Event "Israel Team Ch Under 18"]
[Site "Jerusalem"]
[Date "2017.08.14"]
[Round "5"]
[White "Caspi, Nimi"]
[Black "Rozen, Eytan"]
[Result "1-0"]
[ECO "C55"]
[WhiteElo "1780"]
[BlackElo "1819"]
[Annotator "NA"]
[PlyCount "131"]
[EventDate "2017.??.??"]
[EventType "swiss"]
[EventCountry "ISR"]
[SourceTitle "playchess.com"]
[Source "ChessBase"]
[SourceQuality "1"]
[TimeControl "40/5400+30:1800+30"]

1. e4 e5 2. Nf3 Nc6 3. d4 exd4 4. Bc4 Nf6 5. O-O Bc5 6. e5 d5 7. exf6 dxc4 8. fxg7 Rg8 9. Re1+ Be6 10. Ng5 {C56: Two Knights: 4 d4 exd4 5 0-0 Nxe4} Qe7 (10... Kd7 11. Qh5 Bd6 12. Nxe6 fxe6 13. Bh6 Qf6 14. Nd2 Bf4 15. Ne4 Qxh6 16. Qf7+ Ne7 17. Nf6+ Kc6 18. Qxe6+ {1-0 (18) Fernandez Guillen,E (2424)-Jimenez Fraga,P (2432) Santa Clara 2017}) 11. Qh5 O-O-O 12. Nxe6 $146 ({Predecessor:} 12. Ne4 Bd5 13. Qf5+ Rd7 14. Bg5 f6 15. Bxf6 Bxe4 16. Rxe4 Qf7 17. g4 Be7 18. Bxe7 Qxf5 19. gxf5 Rxg7+ {1-0 (41) Hager,J (2182)-Nabavi,P (2126) Badenweiler 2009}) 12... fxe6 13. Bh6 Nb4 14. Na3 d3 15. c3 d2 16. Red1 Nd3 17. Rxd2 Bxa3 18. bxa3 Qf6 19. Rc2 Rd5 20. Qh3 Rf5 ({Better is} 20... Qf5 $1 $15 21. Qe3 Qg6) 21. Rf1 Qg6 22. Re2 $1 Kd7 (22... Rf6 $5 {[%cal Rg6h6]} 23. Bd2 Rxg7 $15) 23. Qh4 ({Better is} 23. Re4 $1 $14) 23... Rh5 (23... b5 $11 {keeps the balance.}) 24. Qxc4 Rc5 $18 (24... Qxh6 $16 {was necessary.} 25. Qxd3+ Kc8) 25. Qe4 Qxh6 26. Qxd3+ Rd5 27. Qf3 Qxg7 28. Rfe1 Re8 29. Rxe6 Rxe6 30. Qxd5+ Rd6 31. Qb5+ Rc6 32. Rd1+ Ke7 33. Qb4+ Kf6 34. Qxb7 Rxc3 35. Qxa7 Kg6 36. h3 Qe5 37. a4 Rc2 38. Qa6+ Kf7 39. Qh6 Re2 40. Qxh7+ Ke8 41. Qg8+ Ke7 42. Qd8+ Ke6 43. Qe8+ Kf6 44. Qxe5+ Kxe5 45. Rd7 Rxa2 46. Rxc7 Rxa4 47. Rf7 Ke6 48. Rf3 Ke7 49. g4 Ke8 50. Kg2 Ra1 51. Kg3 Ke7 52. g5 Ra4 53. h4 Ke6 54. Rf4 Ra1 55. Kg4 Ke5 56. Rf8 Ke6 57. g6 Ke7 58. Rf4 Ra8 59. h5 Ra1 60. Kg5 Rg1+ 61. Kh6 Ke6 62. g7 Ke5 63. Rf8 Ra1 64. g8=Q Ra6+ 65. Qg6 Ra7 66. Re8+ 1-0

[Event "Israel Team Ch Under 18"]
[Site "Jerusalem"]
[Date "2017.08.14"]
[Round "5"]
[White "Vaknin, Asaf"]
[Black "Gabizon, Eyal"]
[Result "0-1"]
[ECO "A45"]
[WhiteElo "1746"]
[BlackElo "2146"]
[Annotator "NA"]
[PlyCount "74"]
[EventDate "2017.??.??"]
[EventType "swiss"]
[EventCountry "ISR"]
[SourceTitle "playchess.com"]
[Source "ChessBase"]
[SourceQuality "1"]
[TimeControl "40/5400+30:1800+30"]

1. d4 {[%emt 0:40:12]} Nf6 {[%emt 0:40:44]} 2. Bg5 {[%emt 0:00:26]} Ne4 {[%emt 0:00:30]} 3. Bf4 {[%emt 0:00:46]} c5 {[%emt 0:00:33]} 4. f3 {[%emt 0:00:35]} Nf6 {[%emt 0:00:27]} 5. Bxb8 {[%emt 0:00:50]} Rxb8 {[%emt 0:00:26]} 6. e4 {[%emt 0:00:36]} e6 {[%emt 0:02:15]} 7. Ne2 {[%emt 0:04:03]} d5 {[%emt 0:06:25]} 8. e5 {[%emt 0:02:07]} Nd7 {[%emt 0:00:26]} 9. f4 {[%emt 0:01:30]} cxd4 {[%emt 0:02:29]} 10. Nxd4 {[%emt 0:02:27]} Bc5 {[%emt 0:00:26]} 11. c3 {[%emt 0:02:10]} O-O {[%emt 0:01:18]} 12. Nd2 {[%emt 0:02:34]} Re8 {[%emt 0:10:40]} 13. N2b3 {[%emt 0:02:30]} Bf8 {[%emt 0:00:30]} 14. Qc2 {[%emt 0:01:53]} f6 {[%emt 0:02:30]} 15. exf6 {[%emt 0:02:54]} Qxf6 {[%emt 0:04:00]} 16. Ne2 {[%emt 0:02:25]} e5 {[%emt 0:01:29]} 17. O-O-O {[%emt 0:05:01]} exf4 {[%emt 0:02:19]} 18. Rxd5 {[%emt 0:01:06]} f3 {[%emt 0:05:51]} (18... Ne5 $17 19. Ned4 b6) 19. Ng3 $1 {[%emt 0:03:39]} Nb6 {[%emt 0:01:40]} 20. Rd1 {[%emt 0:03:08] [#]} (20. Rd4 $1 $11 {keeps the balance.}) 20... Bg4 $1 {[%emt 0:01:40]} ({Worse is} 20... f2 21. Bd3 $14) 21. gxf3 {[%emt 0:01:12]} Bxf3 {[%emt 0:00:29]} 22. Bd3 {[%emt 0:00:39]} Bxh1 {[%emt 0:01:52]} 23. Rxh1 {[%emt 0:01:00]} g6 {[%emt 0:01:59]} 24. Rf1 {[%emt 0:01:32]} Bh6+ {[%emt 0:00:44]} 25. Kd1 $2 {[%emt 0:01:31]} (25. Kb1 {keeps fighting.} Qxf1+ 26. Bxf1 Re1+ 27. Nc1 Rxc1+ 28. Qxc1 Bxc1 29. Kxc1) 25... Qe6 $19 {[%emt 0:02:44]} 26. Nd4 {[%emt 0:02:22]} Qg4+ {[%emt 0:03:38]} 27. Be2 {[%emt 0:00:51]} Qg5 {[%emt 0:00:39]} 28. Rg1 {[%emt 0:05:03]} Kh8 {[%emt 0:01:15]} 29. Re1 {[%emt 0:01:58]} Nd5 {[%emt 0:00:51]} 30. Nf1 {[%emt 0:02:11]} Rbd8 {[%emt 0:01:41]} 31. b3 {[%emt 0:02:22]} Nf4 {[%emt 0:02:37]} 32. Bf3 {[%emt 0:01:48]} Nh3 {[%emt 0:01:08]} 33. Re4 {[%emt 0:02:31]} Rxe4 {[%emt 0:00:28]} 34. Bxe4 {[%emt 0:00:22]} Qf4 {[%emt 0:00:33]} 35. Nd2 {[%emt 0:00:34]} Nf2+ {[%emt 0:00:25]} 36. Kc1 {[%emt 0:00:26]} Nxe4 {[%emt 0:00:25]} 37. Kb2 {[%emt 0:00:39]} Qxd2 {[%emt 0:00:24]} 0-1

[Event "Israel Team Ch Under 18"]
[Site "Jerusalem"]
[Date "2017.08.14"]
[Round "5"]
[White "Shapira, Gal"]
[Black "Hayohamo, Raz"]
[Result "0-1"]
[ECO "A69"]
[WhiteElo "1651"]
[BlackElo "1872"]
[Annotator "NA"]
[PlyCount "66"]
[EventDate "2017.??.??"]
[EventType "swiss"]
[EventCountry "ISR"]
[SourceTitle "playchess.com"]
[Source "ChessBase"]
[SourceQuality "1"]
[TimeControl "40/5400+30:1800+30"]

1. d4 Nf6 2. c4 e6 3. Nc3 c5 4. d5 exd5 5. cxd5 d6 6. e4 g6 7. f4 Bg7 8. Nf3 O-O 9. Be2 Re8 10. Nd2 Na6 11. O-O Nc7 12. a4 a6 13. Bf3 Rb8 14. Re1 {A69: Modern Benoni: Four Pawns Attack with 9...Re8} b5 15. axb5 axb5 16. Qc2 $146 ({Find the theoretical novelty and annotate with similar games:} 16. Nb3 Bb7 17. Na5 Ba8 18. Nc6 Bxc6 19. dxc6 b4 20. Nd5 Nb5 {½-½ (20) Arnaudov,P (2448)-Rusev,K (2539) Milan 2013}) 16... Nfxd5 17. Nxd5 Nxd5 18. Nb3 Nb4 19. Qd1 c4 20. Bd2 Nd3 21. Na5 Nxe1 22. Bxe1 Qc7 23. Bb4 Qb6+ 24. Kh1 Bxb2 25. Ra2 Bg7 26. Bxd6 Rd8 27. e5 Bf8 28. Nc6 $19 Bb7 29. Nxd8 Rxd8 30. Bxb7 Bxd6 31. exd6 Qxb7 32. Qd4 Qc6 33. Rd2 c3 0-1